[Event "Western Asian Juniors Chess-ch 2023"]
[Site "Colombo"]
[Date "2023.12.02"]
[Round "5.7"]
[White "Janukshan, B."]
[Black "Ankit Ray"]
[Result "0-1"]
[ECO "A46"]
[WhiteElo "1635"]
[BlackElo "1902"]
[Annotator "NA RC"]
[PlyCount "153"]
[EventDate "2023.11.30"]
[EventCountry "SRI"]
[SourceTitle "playchess.com"]
[Source "ChessBase"]
[SourceQuality "1"]
[TimeControl "5400+30"]

1. d4 {[%emt 0:00:35]} Nf6 {[%emt 0:00:34]} 2. Nf3 {[%emt 0:00:11]} e6 {[%emt 0:00:29]} 3. g3 {[%emt 0:01:07]} b5 {[%emt 0:01:06]} 4. Bg2 {[%emt 0:00:46]} Bb7 {[%emt 0:00:27]} 5. Qd3 {[%emt 0:03:16]} a6 {[%emt 0:02:41]} 6. Bg5 {[%emt 0:02:17]} c5 {[%emt 0:06:43]} 7. dxc5 {[%emt 0:05:34]} Bxc5 {[%emt 0:00:16]} 8. O-O {[%emt 0:05:38]} h6 {[%emt 0:03:34]} 9. Bxf6 {[%emt 0:04:58]} Qxf6 {[%emt 0:00:09]} 10. Nbd2 {[%emt 0:03:16]} O-O {[%emt 0:03:01]} 11. c3 {[%emt 0:10:58]} d5 {[%emt 0:02:45]} 12. e4 {[%emt 0:03:58]} Nd7 {[%emt 0:01:08]} 13. exd5 {[%emt 0:02:12]} Bxd5 {[%emt 0:00:30]} 14. Ne4 {[%emt 0:05:14]} Qe7 {[%emt 0:00:50]} 15. Nxc5 {[%emt 0:04:41]} Nxc5 {[%emt 0:00:15]} 16. Qe3 {[%emt 0:00:36]} Rac8 {[%emt 0:04:09]} 17. Rfd1 {[%emt 0:02:06]} Qb7 {[%emt 0:02:21]} 18. b3 {[%emt 0:03:31]} Ne4 {[%emt 0:03:59]} 19. Rac1 {[%emt 0:01:07]} Nf6 {[%emt 0:05:34]} 20. Ne1 {[%emt 0:07:45]} Bxg2 {[%emt 0:14:49]} 21. Nxg2 {[%emt 0:00:01]} Nd5 {[%emt 0:00:13]} 22. Qf3 {[%emt 0:02:32]} Rc6 {[%emt 0:08:19]} 23. Ne3 {[%emt 0:05:23]} Nxe3 {[%emt 0:01:45]} 24. Qxe3 {[%emt 0:00:07]} Qc7 {[%emt 0:00:37]} 25. Rd3 {[%emt 0:01:44]} Rc8 {[%emt 0:00:57]} 26. Rcd1 {[%emt 0:05:22]} Rxc3 {[%emt 0:01:51]} 27. Rxc3 {[%emt 0:00:57]} Qxc3 {[%emt 0:00:02]} 28. Rd8+ {[%emt 0:00:50]} Kh7 {[%emt 0:01:34]} 29. Qxc3 {[%emt 0:00:52]} Rxc3 {[%emt 0:00:06]} 30. Rd6 {[%emt 0:00:19]} Rc2 {[%emt 0:03:03]} 31. Rxa6 {[%emt 0:00:17]} b4 {[%emt 0:00:08]} 32. Ra4 {[%emt 0:01:43]} g5 {[%emt 0:00:15]} 33. Rxb4 {[%emt 0:01:33]} Rxa2 {[%emt 0:00:05]} 34. h4 {[%emt 0:00:47]} Rb2 {[%emt 0:00:28]} 35. hxg5 {[%emt 0:02:21]} hxg5 {[%emt 0:00:02]} 36. Kg2 {[%emt 0:02:20]} g4 {[%emt 0:00:12]} 37. Rb7 {[%emt 0:03:01]} Kg6 {[%emt 0:00:19]} 38. b4 {[%emt 0:00:25]} Rb1 {[%emt 0:00:17]} 39. b5 {[%emt 0:00:38]} f5 {[%emt 0:04:09]} 40. b6 {[%emt 0:01:14]} Kf6 {[%emt 0:02:28]} 41. Rb8 {[%emt 0:00:49]} Ke7 {[%emt 0:00:42]} 42. Kh2 {[%emt 0:01:14]} Kd7 {[%emt 0:01:35]} 43. Kg2 {[%emt 0:00:43]} Rb2 {[%emt 0:00:31]} 44. Kf1 {[%emt 0:00:23]} Kc6 {[%emt 0:00:21]} 45. Re8 {[%emt 0:00:13]} Kd5 {[%emt 0:00:10]} 46. Rb8 {[%emt 0:00:23]} Kc6 {[%emt 0:03:27]} 47. Re8 {[%emt 0:00:07]} Kd7 {[%emt 0:00:09]} 48. Rb8 {[%emt 0:00:10]} Rb1+ {[%emt 0:00:15]} 49. Ke2 {[%emt 0:00:54]} Kc6 {[%emt 0:00:23]} 50. Re8 {[%emt 0:00:13]} Kd5 {[%emt 0:00:06]} 51. Rb8 {[%emt 0:04:01]} Ke4 {[%emt 0:00:09]} 52. Rd8 {[%emt 0:01:29]} Rxb6 {[%emt 0:00:37]} 53. Rd2 {[%emt 0:00:04]} Rb3 {[%emt 0:00:42]} 54. Ra2 {[%emt 0:00:14]} Rd3 {[%emt 0:00:16]} 55. Ra4+ {[%emt 0:00:21]} Rd4 {[%emt 0:00:06]} 56. Ra3 {[%emt 0:00:04]} e5 {[%emt 0:00:21]} 57. Re3+ {[%emt 0:00:14]} Kd5 {[%emt 0:00:10]} 58. Ra3 {[%emt 0:00:39]} f4 {[%emt 0:00:33]} 59. gxf4 {[%emt 0:01:46]} exf4 {[%emt 0:00:08]} 60. Ra8 {[%emt 0:02:03]} f3+ {[%emt 0:01:57]} 61. Ke1 {[%emt 0:00:12]} Ke4 {[%emt 0:00:32]} 62. Ra7 {[%emt 0:01:05]} Rd5 {[%emt 0:00:17]} 63. Ra4+ {[%emt 0:00:28]} Kf5 {[%emt 0:00:10]} 64. Ra8 {[%emt 0:00:39]} Rb5 {[%emt 0:01:10]} 65. Rg8 {[%emt 0:00:58]} Kf4 {[%emt 0:01:00]} 66. Rf8+ {[%emt 0:00:41]} Kg5 {[%emt 0:02:13]} 67. Rh8 {[%emt 0:00:35]} Ra5 {[%emt 0:02:01]} 68. Rh7 {[%emt 0:00:17]} Ra1+ {[%emt 0:01:01]} 69. Kd2 {[%emt 0:00:01]} Rf1 {[%emt 0:00:09]} 70. Rh2 {[%emt 0:00:58]} Kf4 {[%emt 0:00:23]} 71. Kd3 {[%emt 0:00:58]} Rxf2 {[%emt 0:00:42]} 72. Rxf2 {[%emt 0:00:14]} g3 {[%emt 0:00:02]} 73. Ra2 {[%emt 0:01:07]} g2 {[%emt 0:00:23]} 74. Ra4+ {[%emt 0:00:29]} Kg3 {[%emt 0:00:04]} 75. Ra6 {[%emt 0:00:30]} g1=Q {[%emt 0:00:17]} 76. Rg6+ {[%emt 0:00:29]} Kf2 {[%emt 0:00:02]} 77. Kd4 {[%emt 0:01:03]} 0-1

[Event "Western Asian Juniors Chess-ch 2023"]
[Site "Colombo"]
[Date "2023.12.02"]
[Round "5.8"]
[White "Liyanage, Pesandu Rashmitha"]
[Black "Mujahid Bin Yazeed"]
[Result "1-0"]
[ECO "D03"]
[WhiteElo "1766"]
[BlackElo "1832"]
[Annotator "NA RC"]
[PlyCount "89"]
[EventDate "2023.11.30"]
[EventCountry "SRI"]
[SourceTitle "playchess.com"]
[Source "ChessBase"]
[SourceQuality "1"]
[TimeControl "5400+30"]

1. Nf3 {[%emt 0:08:15]} Nf6 {[%emt 0:00:14]} 2. d4 {[%emt 0:00:06]} c5 {[%emt 0:00:36]} 3. c3 {[%emt 0:01:16]} e6 {[%emt 0:01:12]} 4. Bg5 {[%emt 0:01:10]} d5 {[%emt 0:01:33]} 5. e3 {[%emt 0:00:14]} Nbd7 {[%emt 0:01:54]} 6. Nbd2 {[%emt 0:00:52]} Be7 {[%emt 0:01:19]} 7. Bd3 {[%emt 0:00:57]} a6 {[%emt 0:02:55]} 8. Ne5 {[%emt 0:05:12]} h6 {[%emt 0:18:58]} 9. Bh4 {[%emt 0:05:44]} Nxe5 {[%emt 0:11:11]} 10. dxe5 {[%emt 0:00:07]} Nd7 {[%emt 0:00:06]} 11. Bxe7 {[%emt 0:07:12]} Qxe7 {[%emt 0:00:26]} 12. f4 {[%emt 0:00:37]} c4 {[%emt 0:09:24]} 13. Bc2 {[%emt 0:00:55]} b5 {[%emt 0:03:20]} 14. a3 {[%emt 0:06:57]} Bb7 {[%emt 0:04:11]} 15. Nf3 {[%emt 0:00:34]} O-O {[%emt 0:07:41]} 16. O-O {[%emt 0:02:13]} f6 {[%emt 0:02:07]} 17. Qd4 {[%emt 0:02:39]} f5 {[%emt 0:03:59]} 18. Qd2 {[%emt 0:02:19]} Nc5 {[%emt 0:01:40]} 19. Nd4 {[%emt 0:01:06]} g6 {[%emt 0:01:57]} 20. Qe2 {[%emt 0:14:16]} Kf7 {[%emt 0:04:37]} 21. Kh1 {[%emt 0:06:22]} Rg8 {[%emt 0:02:08]} 22. g4 {[%emt 0:01:31]} Qh4 {[%emt 0:02:10]} 23. Rg1 {[%emt 0:01:04]} Rac8 {[%emt 0:03:05]} 24. Rg3 {[%emt 0:03:13]} g5 {[%emt 0:02:37]} 25. Rag1 {[%emt 0:08:02]} gxf4 {[%emt 0:01:35]} 26. exf4 {[%emt 0:01:50]} Ne4 {[%emt 0:01:11]} 27. Bxe4 {[%emt 0:03:36]} dxe4 {[%emt 0:00:20]} 28. Qe3 {[%emt 0:02:06]} Rxg4 {[%emt 0:03:28]} 29. Rxg4 {[%emt 0:00:12]} fxg4 {[%emt 0:00:04]} 30. Rg3 {[%emt 0:04:07]} Rg8 {[%emt 0:02:23]} 31. Nxe6 {[%emt 0:02:10]} Kxe6 {[%emt 0:00:59]} 32. Qb6+ {[%emt 0:00:05]} Kf5 {[%emt 0:02:03]} 33. Qxb7 {[%emt 0:00:22]} Rf8 {[%emt 0:00:21]} 34. Qg7 {[%emt 0:00:53]} Kxf4 {[%emt 0:01:24]} 35. Qxf8+ {[%emt 0:00:18]} Kxe5 {[%emt 0:00:05]} 36. Qc5+ {[%emt 0:00:19]} Kf4 {[%emt 0:00:24]} 37. Qd6+ {[%emt 0:00:08]} Kf5 {[%emt 0:00:06]} 38. Qd5+ {[%emt 0:00:07]} Kf4 {[%emt 0:00:15]} 39. Qd2+ {[%emt 0:01:53]} Ke5 {[%emt 0:00:17]} 40. Qd4+ {[%emt 0:01:50]} Kf4 {[%emt 0:00:10]} 41. Re3 {[%emt 0:00:23]} Qe7 {[%emt 0:00:16]} 42. Re1 {[%emt 0:00:32]} Qe6 {[%emt 0:00:53]} 43. Rf1+ {[%emt 0:00:21]} Kg5 {[%emt 0:00:03]} 44. Qe3+ {[%emt 0:00:29]} Kh5 {[%emt 0:00:22]} 45. Rf4 {[%emt 0:01:01]} 1-0

[Event "Western Asian Juniors Chess-ch 2023"]
[Site "Colombo"]
[Date "2023.12.02"]
[Round "5.9"]
[White "Senevirathne, D C B K"]
[Black "Nabil Nazar, Mohamed"]
[Result "1-0"]
[ECO "B45"]
[WhiteElo "1482"]
[BlackElo "1803"]
[Annotator "NA RC"]
[PlyCount "119"]
[EventDate "2023.11.30"]
[EventCountry "SRI"]
[SourceTitle "playchess.com"]
[Source "ChessBase"]
[SourceQuality "1"]
[TimeControl "5400+30"]

1. e4 {[%emt 0:00:02]} c5 {[%emt 0:08:38]} 2. Nf3 {[%emt 0:00:03]} e6 {[%emt 0:00:06]} 3. d4 {[%emt 0:00:05]} cxd4 {[%emt 0:00:05]} 4. Nxd4 {[%emt 0:00:03]} Nf6 {[%emt 0:00:04]} 5. Nc3 {[%emt 0:00:06]} Nc6 {[%emt 0:00:03]} 6. Nxc6 {[%emt 0:01:01]} bxc6 {[%emt 0:00:02]} 7. e5 {[%emt 0:00:53]} Nd5 {[%emt 0:00:16]} 8. Ne4 {[%emt 0:00:31]} Bb7 {[%emt 0:00:02]} 9. Be2 {[%emt 0:01:22]} c5 {[%emt 0:01:27]} 10. O-O {[%emt 0:01:52]} Qc7 {[%emt 0:00:55]} 11. Nd6+ {[%emt 0:00:45]} Bxd6 {[%emt 0:00:03]} 12. exd6 {[%emt 0:00:06]} Qc6 {[%emt 0:00:04]} 13. f3 {[%emt 0:00:02]} c4 {[%emt 0:00:31]} 14. Qd4 {[%emt 0:00:23]} O-O {[%emt 0:00:03]} 15. Bxc4 {[%emt 0:00:07]} Qxd6 {[%emt 0:00:36]} 16. b3 {[%emt 0:06:09]} e5 {[%emt 0:10:36]} 17. Qf2 {[%emt 0:02:30]} Nb6 {[%emt 0:04:39]} 18. Bd3 {[%emt 0:10:11]} Qe6 {[%emt 0:08:30]} 19. Bb2 {[%emt 0:02:47]} d5 {[%emt 0:03:26]} 20. f4 {[%emt 0:05:20]} f6 {[%emt 0:06:13]} 21. fxe5 {[%emt 0:05:51]} fxe5 {[%emt 0:00:02]} 22. Qg3 {[%emt 0:00:09]} Nd7 {[%emt 0:02:26]} 23. Rxf8+ {[%emt 0:02:19]} Rxf8 {[%emt 0:00:41]} 24. Re1 {[%emt 0:00:10]} Qb6+ {[%emt 0:10:41]} 25. Kh1 {[%emt 0:00:17]} Qf2 {[%emt 0:02:00]} 26. Bxe5 {[%emt 0:02:47]} Nxe5 {[%emt 0:00:02]} 27. Qxe5 {[%emt 0:02:28]} d4 {[%emt 0:02:34]} 28. Rg1 {[%emt 0:00:10]} Qe3 {[%emt 0:09:22]} 29. Qd6 {[%emt 0:03:27]} Qf2 {[%emt 0:06:10]} 30. Qe6+ {[%emt 0:03:25]} Kh8 {[%emt 0:01:27]} 31. Qh3 {[%emt 0:02:59]} h6 {[%emt 0:02:28]} 32. Qd7 {[%emt 0:00:39]} Qf7 {[%emt 0:05:38]} 33. Qxd4 {[%emt 0:01:03]} a5 {[%emt 0:00:39]} 34. Qb6 {[%emt 0:06:09]} a4 {[%emt 0:02:58]} 35. bxa4 {[%emt 0:00:53]} Bd5 {[%emt 0:00:13]} 36. a3 {[%emt 0:01:21]} Bc4 {[%emt 0:06:17]} 37. Be4 {[%emt 0:03:11]} Qf2 {[%emt 0:01:36]} 38. Qxf2 {[%emt 0:00:48]} Rxf2 {[%emt 0:00:02]} 39. Rd1 {[%emt 0:01:04]} Kg8 {[%emt 0:00:19]} 40. Kg1 {[%emt 0:00:42]} Re2 {[%emt 0:00:03]} 41. Bg6 {[%emt 0:00:14]} Kf8 {[%emt 0:00:39]} 42. Rd8+ {[%emt 0:00:04]} Ke7 {[%emt 0:00:06]} 43. Re8+ {[%emt 0:00:02]} Kd6 {[%emt 0:00:16]} 44. Rxe2 {[%emt 0:00:05]} Bxe2 {[%emt 0:00:02]} 45. Bd3 {[%emt 0:00:11]} Bg4 {[%emt 0:00:15]} 46. Kf2 {[%emt 0:00:10]} Kc6 {[%emt 0:00:52]} 47. a5 {[%emt 0:00:06]} g5 {[%emt 0:00:32]} 48. Kg3 {[%emt 0:00:13]} Be6 {[%emt 0:00:32]} 49. h4 {[%emt 0:00:09]} Bd5 {[%emt 0:00:22]} 50. Be2 {[%emt 0:00:31]} Kc5 {[%emt 0:00:25]} 51. c3 {[%emt 0:00:50]} Be6 {[%emt 0:00:16]} 52. hxg5 {[%emt 0:00:48]} hxg5 {[%emt 0:00:02]} 53. Kf2 {[%emt 0:00:22]} Bd5 {[%emt 0:00:20]} 54. g3 {[%emt 0:00:06]} Be6 {[%emt 0:00:12]} 55. Ke3 {[%emt 0:00:14]} Bd5 {[%emt 0:00:03]} 56. a6 {[%emt 0:00:33]} Kb6 {[%emt 0:00:07]} 57. Kd4 {[%emt 0:00:04]} Bg2 {[%emt 0:01:20]} 58. Ke5 {[%emt 0:00:08]} g4 {[%emt 0:00:54]} 59. Kf4 {[%emt 0:00:08]} Bd5 {[%emt 0:00:31]} 60. Kxg4 {[%emt 0:00:07]} 1-0

[Event "Western Asian Juniors Chess-ch 2023"]
[Site "Colombo"]
[Date "2023.12.02"]
[Round "5.10"]
[White "Sathsindu, W M Minura"]
[Black "Senevirathne, S D B K"]
[Result "1/2-1/2"]
[ECO "E11"]
[WhiteElo "1542"]
[BlackElo "1802"]
[Annotator "NA RC"]
[PlyCount "44"]
[EventDate "2023.11.30"]
[EventCountry "SRI"]
[SourceTitle "playchess.com"]
[Source "ChessBase"]
[SourceQuality "1"]
[TimeControl "5400+30"]

1. d4 {[%emt 0:00:03]} Nf6 {[%emt 0:00:13]} 2. Nf3 {[%emt 0:00:08]} e6 {[%emt 0:00:07]} 3. g3 {[%emt 0:00:06]} b6 {[%emt 0:00:26]} 4. Bg2 {[%emt 0:00:22]} Bb7 {[%emt 0:00:08]} 5. c4 {[%emt 0:01:53]} Bb4+ {[%emt 0:00:39]} 6. Bd2 {[%emt 0:00:10]} Qe7 {[%emt 0:02:13]} 7. a3 {[%emt 0:03:07]} Bxd2+ {[%emt 0:00:25]} 8. Qxd2 {[%emt 0:00:25]} c5 {[%emt 0:02:14]} 9. O-O {[%emt 0:01:29]} O-O {[%emt 0:01:27]} 10. Nc3 {[%emt 0:00:35]} cxd4 {[%emt 0:13:47]} 11. Nxd4 {[%emt 0:00:23]} Bxg2 {[%emt 0:00:09]} 12. Kxg2 {[%emt 0:00:07]} Qc5 {[%emt 0:00:51]} 13. b3 {[%emt 0:07:20]} Rd8 {[%emt 0:03:42]} 14. Rfd1 {[%emt 0:08:50]} Na6 {[%emt 0:05:07]} 15. e4 {[%emt 0:11:58]} d5 {[%emt 0:27:40]} 16. exd5 {[%emt 0:02:42]} exd5 {[%emt 0:00:31]} 17. Nxd5 {[%emt 0:02:44]} Nxd5 {[%emt 0:00:53]} 18. cxd5 {[%emt 0:00:35]} Rxd5 {[%emt 0:00:41]} 19. b4 {[%emt 0:03:02]} Qc7 {[%emt 0:08:08]} 20. Qe2 {[%emt 0:54:31]} Qb7 {[%emt 0:31:09]} 21. Qf3 Rad8 {[%emt 0:00:30]} 22. Qe2 {[%emt 0:01:00]} Ra8 {[%emt 0:00:30]} 1/2-1/2

[Event "Western Asian Juniors Chess-ch 2023"]
[Site "Colombo"]
[Date "2023.12.03"]
[Round "6.1"]
[White "Hommadov, Amanmuhammet"]
[Black "Mazhkenov, Alisher"]
[Result "0-1"]
[ECO "B50"]
[WhiteElo "2055"]
[BlackElo "2105"]
[Annotator "NA RC"]
[PlyCount "146"]
[EventDate "2023.11.30"]
[EventCountry "SRI"]
[SourceTitle "playchess.com"]
[Source "ChessBase"]
[SourceQuality "1"]
[TimeControl "5400+30"]

1. e4 {[%emt 0:00:04]} c5 {[%emt 0:01:44]} 2. Nf3 {[%emt 0:00:19]} d6 {[%emt 0:00:45]} 3. c3 {[%emt 0:00:56]} Nf6 {[%emt 0:00:42]} 4. Bd3 {[%emt 0:00:02]} Bg4 {[%emt 0:01:03]} 5. h3 {[%emt 0:01:06]} Bh5 {[%emt 0:05:12]} 6. Bc2 {[%emt 0:00:12]} Nc6 {[%emt 0:06:29]} 7. d3 {[%emt 0:00:07]} e6 {[%emt 0:02:06]} 8. Nbd2 {[%emt 0:00:48]} h6 {[%emt 0:06:30]} 9. Ba4 {[%emt 0:02:56]} Qc7 {[%emt 0:04:50]} 10. Nf1 {[%emt 0:00:10]} O-O-O {[%emt 0:08:07]} 11. Ng3 {[%emt 0:00:16]} Bg6 {[%emt 0:15:42]} 12. Qe2 {[%emt 0:12:11]} Bh7 {[%emt 0:01:16]} 13. O-O {[%emt 0:17:52]} d5 {[%emt 0:01:28]} 14. e5 {[%emt 0:03:00]} Nd7 {[%emt 0:01:18]} 15. d4 {[%emt 0:09:39]} cxd4 {[%emt 0:03:19]} 16. cxd4 {[%emt 0:00:02]} Nb6 {[%emt 0:02:05]} 17. Bb3 {[%emt 0:01:58]} Nb4 {[%emt 0:12:25]} 18. Rd1 {[%emt 0:20:28]} Kb8 {[%emt 0:06:40]} 19. Bf4 {[%emt 0:02:44]} Be7 {[%emt 0:01:10]} 20. Rac1 {[%emt 0:00:21]} Qd7 {[%emt 0:00:44]} 21. a3 {[%emt 0:04:03]} Nc6 {[%emt 0:00:20]} 22. Bd2 {[%emt 0:01:29]} Nc4 {[%emt 0:05:27]} 23. Bxc4 {[%emt 0:06:54]} dxc4 {[%emt 0:00:06]} 24. Qxc4 {[%emt 0:00:02]} Rc8 {[%emt 0:03:40]} 25. Qe2 {[%emt 0:00:01]} Qd5 {[%emt 0:00:38]} 26. Nh5 {[%emt 0:02:24]} Be4 {[%emt 0:01:27]} 27. Be3 {[%emt 0:00:42]} g5 {[%emt 0:00:48]} 28. Ng3 {[%emt 0:02:58]} Bg6 {[%emt 0:00:27]} 29. b4 {[%emt 0:03:03]} Qb3 {[%emt 0:01:30]} 30. d5 {[%emt 0:05:25]} exd5 {[%emt 0:00:16]} 31. Bc5 {[%emt 0:00:42]} Bxc5 {[%emt 0:01:56]} 32. Rxc5 {[%emt 0:01:41]} Qxa3 {[%emt 0:00:37]} 33. Rcxd5 {[%emt 0:00:03]} Qxb4 {[%emt 0:01:29]} 34. Qe3 {[%emt 0:00:47]} Rhe8 {[%emt 0:01:05]} 35. Nd4 {[%emt 0:01:10]} Nxd4 {[%emt 0:01:02]} 36. R1xd4 {[%emt 0:00:02]} Qc3 {[%emt 0:00:39]} 37. Qe2 {[%emt 0:00:17]} Re7 {[%emt 0:00:54]} 38. Kh2 {[%emt 0:00:39]} Rec7 {[%emt 0:01:11]} 39. f3 {[%emt 0:01:36]} Qc1 {[%emt 0:00:38]} 40. Rd1 {[%emt 0:00:19]} Qc4 {[%emt 0:00:24]} 41. Qf2 {[%emt 0:00:10]} Rc5 {[%emt 0:00:34]} 42. R5d4 {[%emt 0:00:34]} Qe6 {[%emt 0:00:30]} 43. f4 {[%emt 0:00:35]} gxf4 {[%emt 0:00:22]} 44. Qxf4 {[%emt 0:00:01]} Qxe5 {[%emt 0:00:25]} 45. Qxh6 {[%emt 0:00:02]} Rc2 {[%emt 0:01:48]} 46. Qh4 {[%emt 0:00:32]} a6 {[%emt 0:00:33]} 47. Qg4 {[%emt 0:00:26]} R8c3 {[%emt 0:00:32]} 48. Rb4 {[%emt 0:01:28]} Rc7 {[%emt 0:00:37]} 49. Rbd4 {[%emt 0:00:05]} Rb2 {[%emt 0:00:35]} 50. Rd5 {[%emt 0:00:42]} Qe3 {[%emt 0:00:15]} 51. Nf1 {[%emt 0:00:32]} Qf2 {[%emt 0:00:35]} 52. Nd2 {[%emt 0:00:12]} Rcc2 {[%emt 0:00:41]} 53. Qg5 {[%emt 0:01:21]} Ka7 {[%emt 0:00:12]} 54. Rf1 {[%emt 0:00:33]} Qb6 {[%emt 0:00:36]} 55. Rf6 {[%emt 0:00:19]} Qc7+ {[%emt 0:00:18]} 56. Rfd6 {[%emt 0:00:08]} Rb6 {[%emt 0:00:55]} 57. Qg3 {[%emt 0:00:56]} Rc3 {[%emt 0:00:44]} 58. Qe5 {[%emt 0:00:22]} Rd3 {[%emt 0:00:30]} 59. Rxb6 {[%emt 0:00:46]} Qxe5+ {[%emt 0:00:27]} 60. Rxe5 {[%emt 0:00:01]} Kxb6 {[%emt 0:00:01]} 61. Nc4+ {[%emt 0:00:01]} Kc7 {[%emt 0:00:27]} 62. Re7+ {[%emt 0:00:45]} Rd7 {[%emt 0:00:16]} 63. Re8 {[%emt 0:01:10]} b5 {[%emt 0:00:45]} 64. Ne5 {[%emt 0:00:00]} Rd6 {[%emt 0:00:51]} 65. g4 {[%emt 0:01:02]} Rd2+ {[%emt 0:00:41]} 66. Kg3 {[%emt 0:00:11]} b4 {[%emt 0:00:10]} 67. Re7+ {[%emt 0:00:01]} Kd6 {[%emt 0:00:52]} 68. Nxg6 {[%emt 0:00:48]} fxg6 {[%emt 0:00:03]} 69. Rb7 {[%emt 0:00:06]} Kc5 {[%emt 0:00:17]} 70. h4 {[%emt 0:00:07]} a5 {[%emt 0:00:06]} 71. Ra7 {[%emt 0:01:12]} Kb5 {[%emt 0:00:27]} 72. h5 {[%emt 0:00:24]} gxh5 {[%emt 0:00:06]} 73. gxh5 {[%emt 0:00:02]} b3 {[%emt 0:00:18]} 0-1

[Event "Western Asian Juniors Chess-ch 2023"]
[Site "Colombo"]
[Date "2023.12.03"]
[Round "6.2"]
[White "Orozbaev, Eldiar"]
[Black "Harshavardhan G B"]
[Result "0-1"]
[ECO "C45"]
[WhiteElo "2278"]
[BlackElo "2390"]
[Annotator "RC"]
[PlyCount "117"]
[EventDate "2023.11.30"]
[EventCountry "SRI"]
[SourceTitle "playchess.com"]
[Source "ChessBase"]
[SourceQuality "1"]
[TimeControl "5400+30"]

1. e4 {[%emt 0:00:02]} e5 {[%emt 0:00:43]} 2. Nf3 {[%emt 0:00:04]} Nc6 {[%emt 0:00:14]} 3. d4 {[%emt 0:00:04]} exd4 {[%emt 0:00:11]} 4. Nxd4 {[%emt 0:00:24]} Bc5 {[%emt 0:00:09]} 5. Nf5 {[%emt 0:00:04]} d5 {[%emt 0:01:59]} 6. Nxg7+ {[%emt 0:00:06]} Kf8 {[%emt 0:00:07]} 7. Nh5 {[%emt 0:00:03]} Qh4 {[%emt 0:02:17]} 8. Ng3 {[%emt 0:00:06]} Nf6 {[%emt 0:00:43]} 9. Be2 {[%emt 0:00:03]} Bg4 {[%emt 0:10:17]} 10. Nc3 {[%emt 0:04:56]} Re8 {[%emt 0:04:13]} 11. f3 {[%emt 0:55:48]} d4 {[%emt 0:27:08]} 12. Nb5 {[%emt 0:04:05]} Nxe4 {[%emt 0:02:09]} 13. fxe4 {[%emt 0:07:33]} Rxe4 {[%emt 0:03:20]} 14. Bh6+ {[%emt 0:00:04]} Kg8 {[%emt 0:11:54]} 15. Bg5 {[%emt 0:00:05]} Rxe2+ {[%emt 0:00:10]} 16. Qxe2 {[%emt 0:00:03]} Qxg5 {[%emt 0:00:09]} 17. Qe4 {[%emt 0:00:20]} d3 {[%emt 0:07:45]} 18. cxd3 {[%emt 0:00:23]} Kg7 {[%emt 0:02:08]} 19. Rf1 {[%emt 0:25:47]} Rd8 {[%emt 0:05:53]} 20. Nf5+ {[%emt 0:00:00]} Kf8 {[%emt 0:00:56]} 21. h4 {[%emt 0:00:00]} Qg6 {[%emt 0:04:49]} 22. h5 {[%emt 0:00:00]} Qg5 {[%emt 0:00:57]} 23. Qf4 {[%emt 0:00:00]} Bb4+ {[%emt 0:03:05]} 24. Nc3 {[%emt 0:00:00]} Re8+ {[%emt 0:01:15]} 25. Kd2 {[%emt 0:00:00]} Re2+ {[%emt 0:01:07]} 26. Kc1 {[%emt 0:00:00]} Qxf4+ {[%emt 0:00:55]} 27. Rxf4 {[%emt 0:00:00]} Rxg2 {[%emt 0:01:23]} 28. Ne3 {[%emt 0:00:00]} Rg1+ {[%emt 0:00:07]} 29. Rf1 {[%emt 0:00:00]} Rxf1+ {[%emt 0:01:04]} 30. Nxf1 {[%emt 0:00:00]} Bxh5 {[%emt 0:00:05]} 31. Kd2 {[%emt 0:00:00]} Ne5 {[%emt 0:00:34]} 32. a3 {[%emt 0:00:00]} Bc5 {[%emt 0:00:27]} 33. Ng3 {[%emt 0:00:17]} Nf3+ {[%emt 0:01:08]} 34. Ke2 {[%emt 0:00:29]} Nd4+ {[%emt 0:00:44]} 35. Kf1 {[%emt 0:00:04]} Nb3 {[%emt 0:02:13]} 36. Re1 {[%emt 0:00:21]} Bg6 {[%emt 0:00:13]} 37. Nge4 {[%emt 0:01:41]} Bd4 {[%emt 0:00:16]} 38. Kg2 {[%emt 0:00:28]} c6 {[%emt 0:00:48]} 39. Nd6 {[%emt 0:00:30]} b6 {[%emt 0:01:56]} 40. Re8+ {[%emt 0:01:03]} Kg7 {[%emt 0:00:07]} 41. Nc8 {[%emt 0:00:04]} Bxd3 {[%emt 0:02:45]} 42. Nxa7 {[%emt 0:00:21]} f5 {[%emt 0:00:12]} 43. Kf3 {[%emt 0:01:40]} b5 {[%emt 0:01:07]} 44. Rd8 {[%emt 0:01:37]} Be4+ {[%emt 0:01:23]} 45. Kf4 {[%emt 0:01:02]} Bg2 {[%emt 0:00:50]} 46. Rd7+ {[%emt 0:00:12]} Kg8 {[%emt 0:00:46]} 47. Nc8 {[%emt 0:00:08]} Nc5 {[%emt 0:00:36]} 48. Rxd4 {[%emt 0:00:38]} Ne6+ {[%emt 0:00:05]} 49. Ke5 {[%emt 0:00:04]} Nxd4 {[%emt 0:00:05]} 50. Kxd4 {[%emt 0:00:02]} Kf7 {[%emt 0:00:32]} 51. Ke5 {[%emt 0:00:04]} h5 {[%emt 0:00:44]} 52. Nd6+ {[%emt 0:00:05]} Kg6 {[%emt 0:00:04]} 53. Nxf5 {[%emt 0:00:21]} Kg5 {[%emt 0:00:03]} 54. b4 {[%emt 0:02:35]} Bf3 {[%emt 0:00:23]} 55. Nd4 {[%emt 0:00:35]} Kg4 {[%emt 0:00:23]} 56. Nce2 {[%emt 0:01:05]} Bxe2 {[%emt 0:01:14]} 57. Nxe2 {[%emt 0:00:04]} h4 {[%emt 0:00:03]} 58. Ke4 {[%emt 0:00:38]} h3 {[%emt 0:02:37]} 59. Kd4 {[%emt 0:03:52]} 0-1